fUSD/lending_fUSD_20250417
["ID","MTS","AMOUNT","RATE_DAILY","PERIOD"]
[358284384,1744896060695,-500.0,0.00063899,120]
[358284385,1744896060722,-500.0,0.00063899,120]
[358284386,1744896060751,-151.0,0.00063945,120]
[358284387,1744896060778,-500.0,0.00063999,120]
[358284388,1744896060805,-494.27639329,0.00063999,120]
[358284389,1744896060831,-500.0,0.00063999,120]
[358284390,1744896060857,-500.0,0.00063999,120]
[358284391,1744896060884,-155.33,0.00063999,120]
[358284392,1744896060911,-500.0,0.00063999,120]
[358284393,1744896060937,-500.0,0.00063999,120]
[358284394,1744896060963,-500.0,0.00063999,120]
[358284395,1744896060988,-178.0,0.00068602,2]
[358284396,1744896061019,-163.17,0.00068961,120]
[358284397,1744896061047,-155.06676558,0.00071132,2]
[358284398,1744896061075,-500.0,0.00071232,120]
[358284399,1744896061102,-500.0,0.00071232,120]
[358284400,1744896061127,-500.0,0.00071232,120]
[358284401,1744896061159,-500.0,0.00071232,120]
[358284402,1744896061185,-500.0,0.00071232,120]
[358284403,1744896061211,-500.0,0.00071232,120]
[358284404,1744896061238,-500.0,0.00071232,120]
[358284405,1744896061264,-500.0,0.00071232,120]
[358284406,1744896061290,-175.53,0.00071232,120]
[358284407,1744896061319,-500.0,0.00071232,120]
[358284408,1744896061345,-500.0,0.00071232,120]
[358284409,1744896061371,-500.0,0.00071232,120]
[358284410,1744896061397,-500.0,0.00071232,120]
[358284411,1744896061424,-500.0,0.00071232,120]
[358284412,1744896061450,-500.0,0.00071232,120]
[358284413,1744896061476,-627.83,0.00071232,120]
[358284414,1744896061502,-167.59256611,0.00071232,120]
[358284415,1744896061527,-500.0,0.00071232,120]
[358284416,1744896061553,-500.0,0.00071232,120]
[358284417,1744896061579,-500.0,0.00071232,120]
[358284418,1744896061608,-500.0,0.00071232,120]
[358284419,1744896061634,-500.0,0.00071232,120]
[358284420,1744896061660,-500.0,0.00071232,2]
[358284421,1744896061686,-526.23,0.00071232,120]
[358284422,1744896061711,-500.0,0.00071232,120]
[358284423,1744896061737,-500.0,0.00071232,120]
[358284424,1744896061763,-500.0,0.00071232,120]
[358284425,1744896061791,-406.63,0.00071232,120]
[358284426,1744896061821,-500.0,0.00071232,120]
[358284427,1744896061847,-500.0,0.00071232,120]
[358284428,1744896061873,-500.0,0.00071232,120]
[358284429,1744896061899,-500.0,0.00071232,120]
[358284430,1744896061925,-558.00595601,0.00071232,120]
[358284431,1744896061952,-500.0,0.00071232,120]
[358284432,1744896061978,-476.65,0.00071232,120]
[358284433,1744896062006,-500.0,0.00071232,120]
[358284434,1744896062032,-500.0,0.00071232,120]
[358284435,1744896062059,-500.0,0.00071232,120]
[358284436,1744896062086,-500.0,0.00071232,120]
[358284437,1744896062113,-500.0,0.00071232,120]
[358284438,1744896062140,-208.51,0.00071232,120]
[358284439,1744896062166,-500.0,0.00071232,120]
[358284440,1744896062193,-500.0,0.00071232,120]
[358284441,1744896062219,-500.0,0.00071232,120]
[358284442,1744896062245,-164.69,0.00072118,120]
[358284443,1744896062271,-500.0,0.00072118,120]
[358284444,1744896062296,-500.0,0.00072118,120]
[358284445,1744896062323,-471.98948504,0.00072218,120]
[358284446,1744896062349,-946.83,0.00072772,2]
[358284447,1744896062375,-1000.0,0.00073025,120]
[358284448,1744896062401,-169.28,0.00074399,2]
[358284449,1744896062426,-24284.91,0.00074673,2]
[358284450,1744896062450,-5505.37,0.00074673,2]
[358284451,1744896062475,-178.0,0.00075463,2]
[358284452,1744896062501,-250.0,0.00079162,120]
[358284453,1744896062528,-500.0,0.00079452,30]
[358284454,1744896062552,-500.0,0.00079452,120]
[358284455,1744896062578,-500.0,0.00079452,120]
[358284456,1744896062604,-395.46469508,0.00079452,120]
[358284457,1744896062630,-306.55132333,0.00079452,120]
[358284458,1744896062654,-500.0,0.00079452,120]
[358284459,1744896062680,-500.0,0.00079452,120]
[358284460,1744896062704,-481.09,0.00079452,120]
[358284461,1744896062731,-500.0,0.00079452,120]
[358284462,1744896062758,-500.0,0.00079452,120]
[358284463,1744896062782,-641.98,0.00079452,2]
[358284464,1744896062808,-190.23,0.00079452,120]
[358284465,1744896062972,-500.0,0.00079452,120]
[358284466,1744896063000,-500.0,0.00079452,120]
[358284467,1744896063032,-500.0,0.00079452,120]
[358284468,1744896063059,-500.0,0.00079452,120]
[358284469,1744896063087,-500.0,0.00079452,120]
[358284470,1744896063116,-500.0,0.00079452,120]
[358284471,1744896063148,-500.0,0.00080338,120]
[358284472,1744896063174,-596.59,0.00080338,120]
[358284473,1744896063200,-622.7,0.00080438,120]
[358284474,1744896063227,-500.0,0.00080438,120]
[358284475,1744896063255,-1000.0,0.00082153,120]
[358284476,1744896063292,500.0,0.00071232,2]
[358284477,1744896063969,500.0,0.00063013,2]
[358284478,1744896064217,500.0,0.00071232,2]
[358284479,1744896067326,500.13996417,0.00063013,120]
[358284480,1744896069929,500.0,0.00063013,120]
[358284481,1744896070179,500.0,0.00071232,120]
[358284482,1744896096022,-3570.0,0.00050922,120]
[358284483,1744896096050,-150.0,0.00050922,30]
[358284487,1744896169237,250.0,0.00017,2]
[358284489,1744896183624,2120.0,0.00025,30]
[358284495,1744896310851,4431.80587846,0.000154,2]
[358284496,1744896310874,1136.82434725,0.000154,2]
[358284497,1744896320510,3544.98153121,9e-05,2]
[358284498,1744896320532,1636.23011825,9e-05,2]
[358284499,1744896326485,991.65463,0.000108,2]
[358284500,1744896328734,2053.92113021,0.00011,2]
[358284501,1744896328758,1987.89823306,0.00011,2]
[358284502,1744896337424,2693.9076454,9e-05,2]
[358284503,1744896337448,4681.80587846,9e-05,2]
[358284504,1744896337477,13414.48676618,9e-05,2]
[358284505,1744896351125,-300.0,0.00019,2]
[358284506,1744896351278,-1526.48648536,0.0002,2]
[358284507,1744896356047,17164.64920836,6.94e-05,2]
[358284509,1744896367888,2400.24957549,8e-05,2]
[358284511,1744896407946,-300.0,0.00019999,2]
[358284512,1744896407977,-15321.88137133,0.0002,2]
[358284513,1744896408016,-221.32351177,0.0002,2]
[358284514,1744896408055,-350.0,0.00021,2]
[358284515,1744896408089,-420.0,0.00021777,2]
[358284516,1744896408125,-587.0,0.00023712,2]
[358284517,1744896408160,-823.0,0.0002582,2]
[358284518,1744896408195,-3186.81315628,0.000265,5]
[358284519,1744896408231,-1152.0,0.00028115,2]
[358284520,1744896408267,-190.0,0.00030615,2]
[358284521,1744896408299,-11881.78415532,0.00031,120]
[358284522,1744896408337,-41120.13792745,0.0003133,2]
[358284523,1744896408376,-173.0,0.00041,14]
[358284524,1744896408411,-151.0,0.00045,120]
[358284525,1744896408444,-151.0,0.00045,120]
[358284526,1744896408481,-951.76494557,0.000468,120]
[358284527,1744896408523,-154.72,0.000507,48]
[358284528,1744896408552,-200.77,0.00050922,10]
[358284529,1744896408581,-572.07281325,0.0005909,2]
[358284530,1744896408614,-430.23203876,0.00063013,120]
[358284531,1744896408648,-500.0,0.00063013,120]
[358284532,1744896408681,-350.0,0.00063013,111]
[358284533,1744896408715,-500.0,0.00063013,120]
[358284534,1744896408749,-500.0,0.00063013,120]
[358284535,1744896408785,-3295.19,0.00063013,120]
[358284536,1744896408818,-500.0,0.00063013,120]
[358284537,1744896408855,-175.74,0.00063013,120]
[358284538,1744896408887,-500.0,0.00063013,120]
[358284539,1744896408923,-500.0,0.00063013,120]
[358284540,1744896408957,-2413.18,0.00063013,120]
[358284541,1744896408990,-500.0,0.00063013,120]
[358284542,1744896409025,-500.0,0.00063013,120]
[358284543,1744896409058,-500.0,0.00063013,120]
[358284544,1744896409092,-463.23,0.00063013,120]
[358284545,1744896409125,-500.0,0.00063013,120]
[358284546,1744896409160,-4013.76,0.00063013,7]
[358284547,1744896409192,-500.0,0.00063013,120]
[358284548,1744896409227,-580.06158395,0.00063013,120]
[358284549,1744896409264,-500.0,0.00063013,120]
[358284550,1744896409295,-500.0,0.00063013,120]
[358284551,1744896409329,-500.0,0.00063013,120]
[358284552,1744896409573,-500.0,0.00063013,120]
[358284553,1744896409601,-238.72,0.00063013,120]
[358284554,1744896409629,-500.0,0.00063013,120]
[358284555,1744896409657,-500.0,0.00063013,120]
[358284556,1744896409684,-500.0,0.00063013,120]
[358284557,1744896409711,-500.0,0.00063013,120]
[358284558,1744896409738,-500.0,0.00063013,120]
[358284559,1744896409767,-500.0,0.00063013,120]
[358284560,1744896409793,-500.0,0.00063013,120]
[358284561,1744896409819,-500.0,0.00063013,120]
[358284562,1744896409846,-500.0,0.00063013,120]
[358284563,1744896409872,-500.0,0.00063013,120]
[358284564,1744896409899,-500.0,0.00063013,120]
[358284565,1744896409925,-500.0,0.00063013,120]
[358284566,1744896409951,-577.57,0.00063013,120]
[358284567,1744896409978,-500.0,0.00063013,120]
[358284568,1744896410005,-500.0,0.00063013,120]
[358284569,1744896410032,-500.0,0.00063013,120]
[358284570,1744896410059,-500.0,0.00063013,120]
[358284571,1744896410086,-500.0,0.00063013,120]
[358284572,1744896410114,-500.0,0.00063013,120]
[358284573,1744896410141,-500.0,0.00063013,120]
[358284574,1744896410170,-617.53,0.00063013,120]
[358284575,1744896410198,-500.0,0.00063013,120]
[358284576,1744896410229,-500.0,0.00063013,120]
[358284577,1744896410258,-500.0,0.00063013,120]
[358284578,1744896410285,-500.0,0.00063013,120]
[358284579,1744896410313,-500.0,0.00063013,8]
[358284580,1744896410340,-500.0,0.00063013,120]
[358284581,1744896410367,-500.0,0.00063013,120]
[358284582,1744896410394,-500.0,0.00063013,120]
[358284583,1744896410425,-500.0,0.00063013,120]
[358284584,1744896410453,-500.0,0.00063013,120]
[358284585,1744896410480,-500.0,0.00063013,120]
[358284586,1744896410506,-686.48,0.00063013,120]
[358284587,1744896410533,-500.0,0.00063013,120]
[358284588,1744896410559,-500.0,0.00063013,120]
[358284589,1744896410591,-500.0,0.00063998,120]
[358284590,1744896410617,-500.0,0.0006571,5]
[358284591,1744896410645,-350.0,0.00066301,111]
[358284592,1744896410672,-150.0,0.000682,2]
[358284593,1744896410701,-350.0,0.00069314,111]
[358284594,1744896410729,-500.0,0.00071232,120]
[358284595,1744896410756,-500.0,0.00071232,120]
[358284596,1744896410782,-3295.19,0.00071232,120]
[358284597,1744896410808,-272.28,0.00071232,120]
[358284598,1744896410836,-500.0,0.00071232,120]
[358284599,1744896410863,-2413.18,0.00071232,120]
[358284600,1744896410891,-500.0,0.00071232,120]
[358284601,1744896410920,-432.16,0.00071232,120]
[358284602,1744896410949,-500.0,0.00071232,120]
[358284603,1744896410977,-236.94,0.00071232,120]
[358284604,1744896411004,-4013.76,0.00071232,7]
[358284605,1744896411030,-500.0,0.00071232,120]
[358284606,1744896411058,-500.0,0.00071232,120]
[358284607,1744896411084,-500.0,0.00071232,120]
[358284608,1744896411110,-500.0,0.00071232,120]
[358284609,1744896411136,-500.0,0.00071232,120]
[358284610,1744896411163,-500.0,0.00071232,120]
[358284611,1744896411190,-500.0,0.00071232,120]
[358284612,1744896411221,-500.0,0.00071232,120]
[358284613,1744896411248,-500.0,0.00071232,120]
[358284614,1744896411274,-500.0,0.00071232,120]
[358284615,1744896411301,-500.0,0.00071232,120]
[358284616,1744896411326,-500.0,0.00071232,8]
[358284617,1744896411353,-500.0,0.00071232,120]
[358284618,1744896411379,-500.0,0.00071232,120]
[358284619,1744896411404,-500.0,0.00071232,120]
[358284620,1744896411432,-500.0,0.00071232,120]
[358284621,1744896411459,-500.0,0.00071232,120]
[358284622,1744896411485,-500.0,0.00071232,120]
[358284623,1744896411511,-686.48,0.00071232,120]
[358284624,1744896411537,-643.920001,0.00071232,120]
[358284625,1744896411562,-500.0,0.00071345,2]
[358284626,1744896411588,-151.0,0.00071781,120]
[358284627,1744896411612,-200.0,0.00072586,2]
[358284628,1744896411638,-250.0,0.00078055,120]
[358284629,1744896411664,-575.97,0.00078865,30]
[358284630,1744896411689,-205.0,0.00079162,120]
[358284631,1744896411714,-500.0,0.00079452,120]
[358284632,1744896411740,-500.0,0.00079452,120]
[358284633,1744896411850,-3295.19,0.00079452,120]
[358284634,1744896411898,-379.5,0.00079452,120]
[358284635,1744896411924,-2413.18,0.00079452,120]
[358284636,1744896411951,-500.0,0.00079452,120]
[358284637,1744896411977,-500.0,0.00079452,120]
[358284638,1744896412005,-4013.76,0.00079452,7]
[358284639,1744896412034,-500.0,0.00079452,120]
[358284640,1744896412062,-500.0,0.00079452,120]
[358284641,1744896412090,-500.0,0.00079452,120]
[358284642,1744896412116,-500.0,0.00079452,120]
[358284643,1744896412144,-500.0,0.00079452,120]
[358284644,1744896412170,-500.0,0.00079452,120]
[358284645,1744896412197,-500.0,0.00079452,120]
[358284646,1744896412229,-500.0,0.00079452,120]
[358284647,1744896412255,-500.0,0.00079452,8]
[358284648,1744896412282,-500.0,0.00079452,120]
[358284649,1744896412310,-494.8024,0.00079452,120]
[358284650,1744896412336,-579.55,0.00079452,120]
[358284651,1744896412363,-500.0,0.00079452,120]
[358284652,1744896412389,-500.0,0.00079452,120]
[358284653,1744896412416,-686.48,0.00079452,120]
[358284654,1744896412444,-200.0,0.00081742,18]
[358284655,1744896412473,-500.0,0.0008215,120]
[358284656,1744896412499,-200.0,0.00082153,120]
[358284657,1744896412525,-207.4,0.00082153,120]
[358284658,1744896412551,-215.0738,0.00082153,120]
[358284659,1744896412577,-223.0315306,0.00082153,120]
[358284660,1744896412604,-231.28369723,0.00082153,120]
[358284661,1744896412631,-239.84119403,0.00082153,120]
[358284662,1744896412659,-248.71531821,0.00082153,120]
[358284663,1744896412687,-257.91778498,0.00082153,120]
[358284664,1744896412715,-267.46074303,0.00082153,120]
[358284665,1744896412744,-277.35679052,0.00082153,120]
[358284666,1744896412772,-287.61899177,0.00082153,120]
[358284667,1744896412799,-298.26089446,0.00082153,120]
[358284668,1744896412826,-309.29654756,0.00082153,120]
[358284669,1744896412867,-320.74051982,0.00082153,120]
[358284670,1744896412904,-332.60791905,0.00082153,120]
[358284671,1744896412942,-344.91441206,0.00082153,120]
[358284672,1744896412979,-357.6762453,0.00082153,120]
[358284673,1744896413015,-370.91026638,0.00082153,120]
[358284674,1744896413051,-384.63394623,0.00082153,120]
[358284675,1744896413085,-600.0,0.00082153,120]
[358284676,1744896413119,-178.0,0.00082323,120]
[358284677,1744896413153,-221.85486831,0.00083953,2]
[358284678,1744896413188,-200.0,0.00084588,30]
[358284679,1744896413224,-765.24,0.00086072,3]
[358284680,1744896413263,-401.29,0.00086072,2]
[358284681,1744896413301,-163.17,0.00086078,120]
[358284682,1744896413336,-500.0,0.00087543,120]
[358284683,1744896413370,-500.0,0.00087671,120]
[358284684,1744896413406,-500.0,0.00087671,120]
[358284685,1744896413447,-500.0,0.00087671,120]
[358284686,1744896413483,-500.0,0.00087671,120]
[358284687,1744896413520,-500.0,0.00087671,120]
[358284688,1744896413557,-500.0,0.00087671,120]
[358284689,1744896413594,-500.0,0.00087671,120]
[358284690,1744896413629,-3295.19,0.00087671,120]
[358284691,1744896413664,-2413.18,0.00087671,120]
[358284692,1744896413700,-500.0,0.00087671,120]
[358284693,1744896413735,-500.0,0.00087671,120]
[358284694,1744896413772,-4013.76,0.00087671,7]
[358284695,1744896413811,-500.0,0.00087671,120]
[358284696,1744896413845,-509.05605198,0.00087671,120]
[358284697,1744896413880,-500.0,0.00087671,120]
[358284698,1744896413916,-500.0,0.00087671,120]
[358284699,1744896413951,-166.92,0.00087671,120]
[358284700,1744896413990,-500.0,0.00087671,120]
[358284701,1744896414027,-556.49,0.00087671,120]
[358284702,1744896414064,-500.0,0.00087671,8]
[358284703,1744896414102,-500.0,0.00087671,120]
[358284704,1744896414139,-317.78,0.00087671,120]
[358284705,1744896414176,-686.48,0.00087671,120]
[358284706,1744896414211,-933.902,0.00088835,2]
[358284707,1744896414249,-964.69,0.00088935,2]
[358284708,1744896414286,-6646.8691,0.000899,120]
[358284709,1744896414321,-521.3916,0.000899,120]
[358284710,1744896414356,-315.9481,0.000899,2]
[358284711,1744896414391,-1000.0,0.000899,30]
[358284712,1744896414429,-165.74403846,0.000899,28]
[358284713,1744896414466,-100000.0,0.0009,120]
[358284714,1744896414507,-301.53,0.0009,2]
[358284715,1744896414544,-2134.91323404,0.00091099,15]
[358284716,1744896414582,-964.69,0.00091199,2]
[358284717,1744896414617,-1000.0,0.00091281,120]
[358284718,1744896414653,-964.69,0.00093463,2]
[358284719,1744896414689,-183.68092461,0.0009445,20]
[358284720,1744896414723,-500.0,0.0009445,60]
[358284721,1744896414760,-500.0,0.00094986,2]
[358284722,1744896414803,-964.69,0.00095727,2]
[358284723,1744896414846,-389.87,0.0009589,120]
[358284724,1744896414890,-500.0,0.0009589,120]
[358284725,1744896414932,-500.0,0.0009589,120]
[358284726,1744896414974,-500.0,0.0009589,120]
[358284727,1744896415014,-500.0,0.0009589,120]
[358284728,1744896415134,-500.0,0.0009589,120]
[358284729,1744896415195,-500.0,0.0009589,120]
[358284730,1744896415234,-3295.19,0.0009589,120]
[358284731,1744896415272,-2413.18,0.0009589,120]
[358284732,1744896415312,-500.0,0.0009589,120]
[358284733,1744896415350,-500.0,0.0009589,120]
[358284734,1744896415386,-4013.76,0.0009589,7]
[358284735,1744896415424,-580.9,0.0009589,120]
[358284736,1744896415463,-500.0,0.0009589,120]
[358284737,1744896415500,-500.0,0.0009589,120]
[358284738,1744896415538,-500.0,0.0009589,120]
[358284739,1744896415574,-410.93,0.0009589,8]
[358284740,1744896415610,-500.0,0.0009589,120]
[358284741,1744896415646,-686.48,0.0009589,120]
[358284742,1744896415686,-964.69,0.00097991,2]
[358284743,1744896415726,-151.0,0.00098548,120]
[358284744,1744896415771,-37244.236,0.000999,120]
[358284745,1744896415806,-167.06,0.00099929,120]
[358284746,1744896415842,-862.52,0.00099999,120]
[358284747,1744896415880,-238.01,0.00099999,120]
[358284748,1744896415917,-500.0,0.00099999,120]
[358284749,1744896415955,-500.0,0.00099999,120]
[358284750,1744896415993,-500.0,0.00099999,120]
[358284751,1744896416031,-500.0,0.00099999,120]
[358284752,1744896416068,-1239.69,0.00099999,120]
[358284753,1744896416105,-516.55698863,0.00099999,120]
[358284754,1744896416141,-500.0,0.00099999,120]
[358284755,1744896416177,-521.30525559,0.00099999,120]
[358284756,1744896416210,-522.72813005,0.00099999,120]
[358284757,1744896416249,-500.0,0.00099999,120]
[358284758,1744896416286,-500.0,0.00099999,120]
[358284759,1744896416324,-417.85994885,0.00099999,120]
[358284760,1744896416360,-500.0,0.00099999,120]
[358284761,1744896416395,-500.0,0.00099999,120]
[358284762,1744896416433,-500.80221432,0.00099999,120]
[358284763,1744896416469,-219.24,0.00099999,120]
[358284764,1744896416506,-500.0,0.00099999,120]
[358284765,1744896416541,-500.0,0.00099999,120]
[358284766,1744896416577,-500.0,0.00099999,120]
[358284767,1744896416614,-500.0,0.00099999,120]
[358284768,1744896416650,-298.49501163,0.00099999,120]
[358284769,1744896416686,-392.96668532,0.00099999,120]
[358284770,1744896416722,-500.0,0.00099999,120]
[358284771,1744896416758,-500.0,0.00099999,120]
[358284772,1744896416795,-500.0,0.00099999,120]
[358284773,1744896416832,-500.0,0.00099999,120]
[358284774,1744896416869,-500.0,0.00099999,120]
[358284775,1744896416906,-500.0,0.00099999,120]
[358284776,1744896416944,-519.26305669,0.00099999,120]
[358284777,1744896416981,-500.0,0.00099999,120]
[358284778,1744896417017,-498.74052,0.00099999,120]
[358284779,1744896417055,-500.0,0.00099999,120]
[358284780,1744896417095,-500.0,0.00099999,2]
[358284781,1744896417138,-500.0,0.00099999,120]
[358284782,1744896417175,-503.27154328,0.00099999,120]
[358284783,1744896417212,-500.0,0.00099999,120]
[358284784,1744896417255,-500.0,0.00099999,120]
[358284785,1744896417296,-500.0,0.00099999,120]
[358284786,1744896417336,-500.0,0.00099999,120]
[358284787,1744896417374,-641.44325056,0.00099999,120]
[358284788,1744896417411,-500.0,0.00099999,120]
[358284789,1744896417453,-500.0,0.00099999,120]
[358284790,1744896417491,-500.0,0.00099999,120]
[358284791,1744896417528,-500.0,0.00099999,120]
[358284792,1744896417568,-500.0,0.00099999,120]
[358284793,1744896417609,-500.0,0.00099999,120]
[358284794,1744896417651,-500.0,0.00099999,120]
[358284795,1744896417695,-313.42,0.00099999,120]
[358284796,1744896417733,-500.0,0.00099999,120]
[358284797,1744896417771,-500.0,0.00099999,120]
[358284798,1744896417812,-500.0,0.00099999,120]
[358284799,1744896417851,-500.0,0.00099999,120]
[358284800,1744896417890,-500.0,0.00099999,120]
[358284801,1744896417928,-500.0,0.00099999,120]
[358284802,1744896417965,-505.77665128,0.00099999,120]
[358284803,1744896418003,-500.0,0.00099999,120]
[358284804,1744896418040,-500.0,0.00099999,120]
[358284805,1744896418079,-500.0,0.00099999,120]
[358284806,1744896418116,-500.0,0.00099999,120]
[358284807,1744896418157,-71563.4,0.001,120]
[358284808,1744896418195,-964.69,0.00100255,2]
[358284809,1744896418236,-500.0,0.00100408,120]
[358284810,1744896418273,-500.0,0.00100408,2]
[358284811,1744896418311,-1000.0,0.00100409,120]
[358284812,1744896418350,-964.69,0.00102519,2]
[358284813,1744896418390,-163.17,0.00103194,120]
[358284814,1744896418430,-200.0,0.0010408,2]
[358284815,1744896418472,-312.4,0.0010408,2]
[358284816,1744896418508,-325.97,0.00104109,120]
[358284817,1744896418544,-500.0,0.00104109,120]
[358284818,1744896418580,-500.0,0.00104109,120]
[358284819,1744896418619,-500.0,0.00104109,120]
[358284820,1744896418658,-500.0,0.00104109,120]
[358284821,1744896418696,-509.63032351,0.00104109,120]
[358284822,1744896418732,-3295.19,0.00104109,120]
[358284823,1744896418771,-2413.18,0.00104109,120]
[358284824,1744896418922,-500.0,0.00104109,120]
[358284825,1744896418963,-500.0,0.00104109,120]
[358284826,1744896419002,-4013.76,0.00104109,7]
[358284827,1744896419041,-500.0,0.00104109,120]
[358284828,1744896419081,-500.0,0.00104109,120]
[358284829,1744896419119,-500.0,0.00104109,120]
[358284830,1744896419157,-500.0,0.00104109,120]
[358284831,1744896419195,-686.48,0.00104109,120]
[358284832,1744896419236,-964.69,0.00104783,2]
[358284833,1744896419273,-500.0,0.00105507,60]
[358284834,1744896419313,-964.69,0.00107046,2]
[358284835,1744896419351,-3715.79257764,0.00108118,15]
[358284836,1744896419388,-862.52,0.00108218,120]
[358284837,1744896419425,-500.0,0.00108218,120]
[358284838,1744896419464,-500.0,0.00108218,120]
[358284839,1744896419500,-1239.69,0.00108218,120]
[358284840,1744896419537,-500.0,0.00108218,120]
[358284841,1744896419575,-500.0,0.00108218,2]
[358284842,1744896419612,-500.0,0.00108218,120]
[358284843,1744896419648,-500.0,0.00108218,120]
[358284844,1744896419689,-500.0,0.00108218,120]
[358284845,1744896419728,-500.0,0.00108218,120]
[358284846,1744896419767,-500.0,0.00108218,120]
[358284847,1744896419806,-500.0,0.00108218,120]
[358284848,1744896419843,-500.0,0.00108218,120]
[358284849,1744896419885,-500.0,0.00108218,120]
[358284850,1744896419929,-500.0,0.00108218,120]
[358284851,1744896419973,-500.0,0.00108627,2]
[358284852,1744896420016,-964.69,0.0010931,2]
[358284853,1744896420056,-1000.0,0.00109537,120]
[358284854,1744896420098,-575.97,0.00110411,30]
[358284855,1744896420134,-489.86277134,0.00110986,60]
[358284856,1744896420173,-964.69,0.00111574,2]
[358284857,1744896420216,-169.28,0.00111598,30]
[358284858,1744896420269,-500.0,0.00112328,120]
[358284859,1744896420317,-500.0,0.00112328,120]
[358284860,1744896420363,-500.0,0.00112328,120]
[358284861,1744896420403,-500.0,0.00112328,120]
[358284862,1744896420449,-3295.19,0.00112328,120]
[358284863,1744896420488,-2413.18,0.00112328,120]
[358284864,1744896420526,-205.8684775,0.00112328,120]
[358284865,1744896420561,-500.0,0.00112328,120]
[358284866,1744896420599,-4013.76,0.00112328,7]
[358284867,1744896420635,-500.0,0.00112328,120]
[358284868,1744896420672,-500.0,0.00112328,120]
[358284869,1744896420709,-500.0,0.00112328,120]
[358284870,1744896420746,-500.0,0.00112328,120]
[358284871,1744896420783,-686.48,0.00112328,120]
[358284872,1744896420822,-964.69,0.00113838,2]
[358284873,1744896420860,-964.69,0.00116102,2]
[358284874,1744896420896,-862.52,0.00116437,120]
[358284875,1744896420935,-500.0,0.00116437,120]
[358284876,1744896420972,-500.0,0.00116437,120]
[358284877,1744896421013,-1239.69,0.00116437,120]
[358284878,1744896421049,-500.0,0.00116437,120]
[358284879,1744896421087,-500.0,0.00116437,2]
[358284880,1744896421124,-500.0,0.00116437,120]
[358284881,1744896421160,-500.0,0.00116437,120]
[358284882,1744896421197,-500.0,0.00116437,120]
[358284883,1744896421234,-483.98624363,0.00116437,120]
[358284884,1744896421275,-500.0,0.00116437,120]
[358284885,1744896421312,-341.18,0.00116437,120]
[358284886,1744896421350,-494.97207497,0.00116437,120]
[358284887,1744896421386,-500.0,0.00116846,2]
[358284888,1744896421426,-964.69,0.00118366,2]
[358284889,1744896421465,-163.17,0.00120311,120]
[358284890,1744896421503,-500.0,0.00120547,120]
[358284891,1744896421538,-500.0,0.00120547,120]
[358284892,1744896421574,-500.0,0.00120547,120]
[358284893,1744896421610,-500.0,0.00120547,120]
[358284894,1744896421651,-3295.19,0.00120547,120]